[Event "MČR družstev mladších žáků 2024"]
[Site "Harrachov, Czech Republic"]
[Date "2024.06.16"]
[Round "8.8"]
[White "Sudrich Radek"]
[Black "Walder Hugo"]
[Result "0-1"]
[TimeControl "25+10"]
[WhiteFideId "23734361"]
[BlackFideId "23743360"]
[WhiteElo "1470"]
[BlackElo "1489"]

1. Nf3 {[%clk 00:25:18]} {[%emt 00:00:02]} Nf6 {[%clk 00:25:19]} {[%emt
00:00:02]} 2. g3 {[%clk 00:25:27]} d5 {[%clk 00:25:25]} {[%emt 00:00:04]} 3.
Bg2 {[%clk 00:25:35]} {[%emt 00:00:02]} c6 {[%clk 00:25:33]} {[%emt 00:00:01]}
4. O-O {[%clk 00:25:39]} {[%emt 00:00:06]} Bf5 {[%clk 00:25:31]} {[%emt
00:00:11]} 5. d3 {[%clk 00:25:32]} {[%emt 00:00:17]} e6 {[%clk 00:25:38]}
{[%emt 00:00:05]} 6. Bf4 {[%clk 00:25:24]} {[%emt 00:00:18]} Bd6 {[%clk
00:25:41]} {[%emt 00:00:07]} 7. Bxd6 {[%clk 00:25:24]} {[%emt 00:00:11]} Qxd6
{[%clk 00:25:48]} {[%emt 00:00:01]} 8. Nbd2 {[%clk 00:25:32]} {[%emt 00:00:03]}
O-O {[%clk 00:25:42]} {[%emt 00:00:16]} 9. c4 {[%clk 00:25:37]} {[%emt
00:00:06]} Nbd7 {[%clk 00:24:50]} {[%emt 00:01:02]} 10. a3 {[%clk 00:24:28]}
{[%emt 00:01:19]} a5 {[%clk 00:24:11]} {[%emt 00:00:50]} 11. Rc1 {[%clk
00:23:43]} {[%emt 00:00:54]} Qe7 {[%clk 00:24:00]} {[%emt 00:00:18]} 12. cxd5
{[%clk 00:23:44]} {[%emt 00:00:12]} exd5 {[%clk 00:24:08]} {[%emt 00:00:02]} 13.
Nd4 {[%clk 00:23:50]} {[%emt 00:00:04]} Bg4 {[%clk 00:23:41]} {[%emt 00:00:37]}
14. h3 {[%clk 00:22:31]} {[%emt 00:01:29]} Bh5 {[%clk 00:23:13]} {[%emt
00:00:38]} 15. g4 {[%clk 00:21:56]} {[%emt 00:00:45]} Bg6 {[%clk 00:23:07]}
{[%emt 00:00:16]} 16. Re1 {[%clk 00:21:18]} {[%emt 00:00:48]} Rfe8 {[%clk
00:19:50]} {[%emt 00:03:26]} 17. e4 {[%clk 00:17:02]} {[%emt 00:04:27]} dxe4
{[%clk 00:19:23]} {[%emt 00:00:36]} 18. Bxe4 {[%clk 00:17:08]} {[%emt
00:00:04]} Nxe4 {[%clk 00:19:12]} {[%emt 00:00:21]} 19. Nxe4 {[%clk 00:17:12]}
{[%emt 00:00:06]} Bxe4 {[%clk 00:18:57]} {[%emt 00:00:25]} 20. dxe4 {[%clk
00:17:12]} {[%emt 00:00:11]} g6 {[%clk 00:18:18]} {[%emt 00:00:49]} 21. f4
{[%clk 00:14:05]} {[%emt 00:03:16]} Rad8 {[%clk 00:15:13]} {[%emt 00:03:15]} 22.
Qf3 {[%clk 00:14:04]} {[%emt 00:00:11]} Nf6 {[%clk 00:14:37]} {[%emt 00:00:46]}
23. e5 {[%clk 00:13:19]} {[%emt 00:00:56]} Rxd4 {[%clk 00:13:23]} {[%emt
00:01:24]} 24. exf6 {[%clk 00:13:28]} {[%emt 00:00:02]} Qxe1+ {[%clk 00:09:47]}
{[%emt 00:03:46]} 25. Rxe1 {[%clk 00:13:36]} {[%emt 00:00:02]} Rxe1+ {[%clk
00:09:55]} {[%emt 00:00:01]} 26. Kf2 {[%clk 00:13:43]} {[%emt 00:00:02]} Red1
{[%clk 00:09:26]} {[%emt 00:00:40]} 27. Qc3 {[%clk 00:13:09]} {[%emt 00:00:43]}
R4d2+ {[%clk 00:06:16]} {[%emt 00:03:21]} 28. Ke3 {[%clk 00:13:16]} {[%emt
00:00:03]} Rd3+ {[%clk 00:06:21]} {[%emt 00:00:06]} 29. Qxd3 {[%clk 00:13:24]}
{[%emt 00:00:02]} Rxd3+ {[%clk 00:06:29]} 30. Kxd3 {[%clk 00:13:33]} {[%emt
00:00:01]} Kf8 {[%clk 00:06:38]} {[%emt 00:00:02]} 31. Kc4 {[%clk 00:13:41]}
{[%emt 00:00:03]} b6 {[%clk 00:06:46]} 32. Kd4 {[%clk 00:13:35]} {[%emt
00:00:17]} Ke8 {[%clk 00:06:49]} {[%emt 00:00:07]} 33. Ke5 {[%clk 00:13:41]}
{[%emt 00:00:03]} Kd7 {[%clk 00:06:57]} {[%emt 00:00:02]} 34. f5 {[%clk
00:13:42]} {[%emt 00:00:09]} g5 {[%clk 00:07:03]} {[%emt 00:00:05]} 35. a4
{[%clk 00:06:14]} {[%emt 00:07:38]} Kc7 {[%clk 00:06:15]} {[%emt 00:00:58]} 36.
b3 {[%clk 00:06:13]} {[%emt 00:00:10]} Kd7 {[%clk 00:06:21]} {[%emt 00:00:05]}
37. h4 {[%clk 00:06:02]} {[%emt 00:00:21]} h6 {[%clk 00:06:28]} {[%emt
00:00:03]} 38. hxg5 {[%clk 00:06:01]} {[%emt 00:00:11]} hxg5 {[%clk 00:06:37]}
{[%emt 00:00:01]} 39. Kd4 {[%clk 00:06:02]} {[%emt 00:00:09]} Kd6 {[%clk
00:06:43]} {[%emt 00:00:04]} 40. Ke4 {[%emt 00:00:05]} c5 {[%clk 00:05:03]}
{[%emt 00:01:47]} 41. Kd3 {[%clk 00:06:15]} {[%emt 00:00:04]} Kd5 {[%clk
00:03:47]} {[%emt 00:01:27]} 42. Kc3 {[%clk 00:06:24]} {[%emt 00:00:01]} Ke4
{[%clk 00:03:53]} {[%emt 00:00:04]} 43. Kc4 {[%clk 00:06:33]} Kf4 {[%clk
00:04:03]} 44. Kb5 {[%clk 00:06:42]} {[%emt 00:00:02]} Kxg4 {[%clk 00:04:12]}
{[%emt 00:00:01]} 45. Kxb6 {[%clk 00:06:51]} {[%emt 00:00:01]} Kxf5 {[%clk
00:04:17]} {[%emt 00:00:05]} 46. Kxc5 {[%clk 00:06:57]} {[%emt 00:00:04]} g4
{[%clk 00:04:26]} 47. b4 {[%clk 00:07:02]} {[%emt 00:00:05]} g3 {[%clk
00:04:35]} {[%emt 00:00:01]} 48. b5 {[%clk 00:07:11]} {[%emt 00:00:01]} g2
{[%clk 00:04:44]} {[%emt 00:00:01]} 49. b6 {[%clk 00:07:19]} {[%emt 00:00:01]}
g1=Q+ {[%clk 00:04:51]} {[%emt 00:00:03]} 50. Kb5 {[%clk 00:07:27]} {[%emt
00:00:02]} Qe1 {[%clk 00:04:31]} {[%emt 00:00:30]} 51. Ka6 {[%clk 00:07:31]}
{[%emt 00:00:06]} Qb4 {[%clk 00:03:04]} {[%emt 00:01:37]} 52. b7 {[%clk
00:07:37]} {[%emt 00:00:03]} Kxf6 {[%clk 00:02:33]} {[%emt 00:00:42]} 53. Ka7
{[%clk 00:07:45]} {[%emt 00:00:02]} Ke6 {[%clk 00:02:25]} {[%emt 00:00:17]} 54.
b8=Q {[%emt 00:00:03]} Qxb8+ {[%clk 00:02:33]} {[%emt 00:00:01]} 55. Kxb8
{[%clk 00:08:03]} {[%emt 00:00:01]} f5 {[%clk 00:02:42]} 56. Kb7 {[%clk
00:08:12]} {[%emt 00:00:01]} f4 {[%clk 00:02:51]} 57. Kb6 {[%clk 00:08:21]}
{[%emt 00:00:01]} f3 {[%clk 00:03:01]} 58. Kxa5 {[%clk 00:08:30]} {[%emt
00:00:02]} f2 {[%clk 00:03:10]} 59. Kb6 {[%clk 00:08:39]} {[%emt 00:00:01]}
f1=Q {[%clk 00:03:16]} {[%emt 00:00:04]} 60. a5 {[%clk 00:08:47]} {[%emt
00:00:01]} Qf2+ {[%clk 00:03:09]} {[%emt 00:00:18]} 61. Kb7 {[%clk 00:08:53]}
{[%emt 00:00:02]} Qf3+ {[%clk 00:03:12]} {[%emt 00:00:09]} 62. Ka7 {[%clk
00:08:58]} {[%emt 00:00:04]} Kd7 {[%clk 00:03:10]} {[%emt 00:00:11]} 63. a6
{[%clk 00:09:05]} {[%emt 00:00:04]} Kc8 {[%clk 00:02:54]} {[%emt 00:00:26]} 64.
Kb6 {[%clk 00:09:13]} {[%emt 00:00:03]} Qa8 {[%clk 00:03:01]} {[%emt 00:00:02]}
65. a7 {[%clk 00:09:22]} {[%emt 00:00:02]} Kd7 {[%clk 00:03:08]} {[%emt
00:00:03]} 66. Ka6 {[%clk 00:09:30]} {[%emt 00:00:02]} Kc6 {[%clk 00:03:11]}
{[%emt 00:00:06]} 67. Ka5 {[%clk 00:09:38]} {[%emt 00:00:01]} Qxa7+ {[%clk
00:03:20]} {[%emt 00:00:01]} 68. Kb4 {[%clk 00:09:47]} {[%emt 00:00:01]} Qc5+
{[%clk 00:03:28]} {[%emt 00:00:02]} 69. Kb3 {[%clk 00:09:56]} {[%emt 00:00:01]}
Qd4 {[%clk 00:03:36]} {[%emt 00:00:02]} 70. Ka3 {[%clk 00:10:04]} {[%emt
00:00:02]} Qb6 {[%clk 00:03:42]} {[%emt 00:00:02]} 71. Ka2 {[%clk 00:10:11]}
{[%emt 00:00:04]} Kc5 {[%clk 00:03:51]} 72. Ka1 {[%clk 00:10:20]} {[%emt
00:00:02]} Kc4 {[%clk 00:04:01]} 73. Ka2 {[%clk 00:10:28]} {[%emt 00:00:02]}
Kc3 {[%clk 00:04:10]} {[%emt 00:00:01]} 74. Ka1 {[%clk 00:10:36]} {[%emt
00:00:02]} Qb2# {[%clk 00:04:18]} {[%emt 00:00:02]} 0-1



[ePGN "0.1;DGT LiveChess/2.2.6"]

[Event "MČR družstev mladších žáků 2024"]
[Site "Harrachov, Czech Republic"]
[Date "2024.06.16"]
[Round "8.9"]
[White "Bucek Vit"]
[Black "Moravec Rene"]
[Result "1-0"]
[TimeControl "25+10"]
[WhiteFideId "23750812"]
[BlackFideId "23745274"]
[WhiteElo "1582"]
[BlackElo "1295"]

1. e4 {[%clk 00:25:19]} c5 {[%clk 00:25:18]} {[%emt 00:00:02]} 2. Nf3 {[%clk
00:25:28]} {[%emt 00:00:03]} Nc6 {[%clk 00:25:25]} {[%emt 00:00:01]} 3. d4
{[%clk 00:25:36]} {[%emt 00:00:02]} cxd4 {[%clk 00:25:31]} {[%emt 00:00:03]} 4.
Nxd4 {[%clk 00:25:43]} {[%emt 00:00:03]} g6 {[%clk 00:25:38]} {[%emt 00:00:03]}
5. Nc3 {[%clk 00:25:52]} {[%emt 00:00:02]} Bg7 {[%clk 00:25:47]} {[%emt
00:00:01]} 6. Be3 {[%clk 00:26:00]} {[%emt 00:00:02]} Nf6 {[%clk 00:25:55]}
{[%emt 00:00:02]} 7. Bc4 {[%clk 00:26:08]} {[%emt 00:00:02]} d6 {[%clk
00:26:03]} {[%emt 00:00:02]} 8. f3 {[%clk 00:25:43]} {[%emt 00:00:35]} O-O
{[%clk 00:26:10]} {[%emt 00:00:03]} 9. Bb3 {[%clk 00:25:49]} {[%emt 00:00:04]}
a6 {[%clk 00:26:12]} {[%emt 00:00:07]} 10. Qd2 {[%clk 00:25:56]} {[%emt
00:00:04]} Bd7 {[%clk 00:26:18]} {[%emt 00:00:05]} 11. h4 {[%clk 00:25:57]}
{[%emt 00:00:09]} h5 {[%clk 00:26:24]} {[%emt 00:00:04]} 12. O-O-O {[%clk
00:25:58]} {[%emt 00:00:08]} b5 {[%clk 00:26:27]} {[%emt 00:00:06]} 13. Kb1
{[%clk 00:24:41]} {[%emt 00:01:28]} Na5 {[%clk 00:25:05]} {[%emt 00:01:28]} 14.
Bh6 {[%clk 00:23:32]} {[%emt 00:01:22]} Nc4 {[%clk 00:23:59]} {[%emt 00:01:17]}
15. Qc1 {[%clk 00:22:34]} {[%emt 00:01:07]} Na5 {[%clk 00:21:17]} {[%emt
00:02:52]} 16. Bxg7 {[%clk 00:22:37]} {[%emt 00:00:08]} Kxg7 {[%clk 00:21:21]}
{[%emt 00:00:06]} 17. Nd5 {[%clk 00:22:19]} {[%emt 00:00:27]} Nxb3 {[%clk
00:20:16]} {[%emt 00:01:15]} 18. cxb3 {[%clk 00:22:20]} {[%emt 00:00:09]} Nxd5
{[%clk 00:19:23]} {[%emt 00:01:03]} 19. exd5 {[%clk 00:22:25]} {[%emt
00:00:05]} Rc8 {[%clk 00:19:08]} {[%emt 00:00:26]} 20. Qd2 {[%clk 00:22:06]}
{[%emt 00:00:22]} Qc7 {[%clk 00:15:32]} {[%emt 00:03:52]} 21. g4 {[%clk
00:15:38]} {[%emt 00:06:39]} hxg4 {[%clk 00:14:37]} {[%emt 00:01:05]} 22. fxg4
{[%clk 00:15:46]} {[%emt 00:00:02]} Bxg4 {[%clk 00:13:55]} {[%emt 00:00:51]} 23.
Rdg1 {[%clk 00:15:54]} {[%emt 00:00:01]} Bh5 {[%clk 00:14:00]} {[%emt
00:00:04]} 24. Nf5+ {[%clk 00:15:20]} {[%emt 00:00:44]} Kg8 {[%clk 00:12:10]}
{[%emt 00:01:57]} 25. Ng3 {[%clk 00:12:22]} {[%emt 00:03:03]} Bf3 {[%clk
00:10:42]} {[%emt 00:01:44]} 26. Qh6 {[%clk 00:10:23]} {[%emt 00:02:09]} Qc2+
{[%clk 00:07:04]} {[%emt 00:03:49]} 27. Ka1 {[%clk 00:10:30]} {[%emt 00:00:05]}
Rc5 {[%clk 00:04:51]} {[%emt 00:02:23]} 28. h5 {[%clk 00:10:09]} {[%emt
00:00:22]} Bxh1 {[%clk 00:04:03]} {[%emt 00:01:07]} 29. Rxh1 {[%clk 00:08:52]}
{[%emt 00:01:27]} Rfc8 {[%clk 00:03:15]} {[%emt 00:00:58]} 30. a3 {[%clk
00:08:18]} {[%emt 00:00:45]} Rxd5 {[%clk 00:02:27]} {[%emt 00:00:57]} 31. hxg6
{[%clk 00:07:55]} {[%emt 00:00:33]} Rd1+ {[%clk 00:02:30]} {[%emt 00:00:03]} 32.
Rxd1 {[%clk 00:08:02]} {[%emt 00:00:06]} Qxd1+ {[%clk 00:02:35]} {[%emt
00:00:06]} 33. Ka2 {[%clk 00:08:11]} {[%emt 00:00:02]} fxg6 {[%clk 00:02:06]}
{[%emt 00:00:38]} 34. Qxg6+ {[%clk 00:08:18]} {[%emt 00:00:02]} Kh8 {[%clk
00:02:07]} {[%emt 00:00:08]} 35. Nf5 {[%clk 00:07:26]} {[%emt 00:01:02]} Qg1
{[%clk 00:00:39]} {[%emt 00:01:41]} 36. Qxg1 {[%clk 00:07:23]} {[%emt
00:00:12]} Kh7 {[%clk 00:00:41]} {[%emt 00:00:08]} 37. Qg7# {[%clk 00:07:32]}
{[%emt 00:00:02]} 1-0



[ePGN "0.1;DGT LiveChess/2.2.6"]

[Event "MČR družstev mladších žáků 2024"]
[Site "Harrachov, Czech Republic"]
[Date "2024.06.16"]
[Round "9.1"]
[White "Zrust Lukas"]
[Black "Kroulik Stepan"]
[Result "1/2-1/2"]
[TimeControl "25+10"]
[WhiteFideId "23736666"]
[BlackFideId "23725460"]
[WhiteElo "1742"]
[BlackElo "1370"]

1. e4 {[%clk 00:25:18]} {[%emt 00:00:02]} c5 {[%clk 00:25:18]} {[%emt
00:00:02]} 2. Nf3 {[%clk 00:25:26]} {[%emt 00:00:01]} e6 {[%clk 00:25:27]} 3.
d4 {[%clk 00:25:35]} cxd4 {[%clk 00:25:37]} 4. Nxd4 {[%clk 00:25:45]} {[%emt
00:00:02]} a6 {[%clk 00:25:46]} 5. Nc3 {[%clk 00:25:47]} {[%emt 00:00:07]} Qc7
{[%clk 00:25:55]} {[%emt 00:00:01]} 6. Be2 {[%clk 00:25:49]} {[%emt 00:00:08]}
Nc6 {[%clk 00:25:59]} {[%emt 00:00:06]} 7. Be3 {[%clk 00:25:53]} {[%emt
00:00:06]} Nf6 {[%clk 00:26:02]} {[%emt 00:00:07]} 8. O-O {[%clk 00:25:37]}
{[%emt 00:00:26]} Bb4 {[%clk 00:26:09]} {[%emt 00:00:03]} 9. f3 {[%clk
00:25:26]} {[%emt 00:00:19]} O-O {[%clk 00:26:07]} {[%emt 00:00:12]} 10. a3
{[%clk 00:25:36]} {[%emt 00:00:02]} Bxc3 {[%clk 00:26:09]} {[%emt 00:00:08]} 11.
bxc3 {[%clk 00:25:43]} {[%emt 00:00:03]} b5 {[%clk 00:26:10]} {[%emt 00:00:08]}
12. c4 {[%clk 00:23:07]} {[%emt 00:02:46]} bxc4 {[%clk 00:25:46]} {[%emt
00:00:35]} 13. Bxc4 {[%clk 00:23:10]} {[%emt 00:00:06]} Rd8 {[%clk 00:25:12]}
{[%emt 00:00:44]} 14. Nxc6 {[%clk 00:22:34]} {[%emt 00:00:47]} Qxc6 {[%clk
00:25:08]} {[%emt 00:00:14]} 15. Qe2 {[%clk 00:22:19]} {[%emt 00:00:25]} d5
{[%clk 00:24:59]} {[%emt 00:00:19]} 16. exd5 {[%clk 00:20:32]} {[%emt
00:01:57]} Nxd5 {[%clk 00:25:02]} {[%emt 00:00:07]} 17. Rfd1 {[%clk 00:20:28]}
{[%emt 00:00:14]} Bb7 {[%clk 00:24:59]} {[%emt 00:00:14]} 18. Bxd5 {[%clk
00:19:34]} {[%emt 00:01:03]} Rxd5 {[%clk 00:25:06]} {[%emt 00:00:03]} 19. Rxd5
{[%clk 00:19:30]} {[%emt 00:00:14]} Qxd5 {[%clk 00:25:10]} {[%emt 00:00:06]} 20.
Rd1 {[%clk 00:19:32]} {[%emt 00:00:08]} Qa5 {[%clk 00:25:03]} {[%emt 00:00:17]}
21. Qd3 {[%clk 00:18:53]} {[%emt 00:00:49]} h6 {[%clk 00:24:55]} {[%emt
00:00:18]} 22. c4 {[%clk 00:18:46]} {[%emt 00:00:17]} Bc6 {[%clk 00:24:33]}
{[%emt 00:00:32]} 23. c5 {[%clk 00:17:47]} {[%emt 00:01:09]} Bd5 {[%clk
00:23:08]} {[%emt 00:01:35]} 24. Rc1 {[%clk 00:16:17]} {[%emt 00:01:40]} Qa4
{[%clk 00:22:45]} {[%emt 00:00:33]} 25. Rb1 {[%clk 00:15:22]} {[%emt 00:01:04]}
Bc4 {[%clk 00:21:26]} {[%emt 00:01:30]} 26. Qc3 {[%clk 00:14:21]} {[%emt
00:01:10]} Bb5 {[%clk 00:20:42]} {[%emt 00:00:54]} 27. Kf2 {[%clk 00:13:29]}
{[%emt 00:01:01]} Qh4+ {[%clk 00:20:02]} {[%emt 00:00:52]} 28. Kg1 {[%clk
00:13:25]} {[%emt 00:00:13]} Rd8 {[%clk 00:19:44]} {[%emt 00:00:29]} 29. Bf2
{[%clk 00:12:19]} {[%emt 00:01:16]} Qe7 {[%clk 00:18:47]} {[%emt 00:01:07]} 30.
h3 {[%clk 00:10:24]} {[%emt 00:02:05]} Rd3 {[%clk 00:18:17]} {[%emt 00:00:40]}
31. Qb4 {[%clk 00:10:21]} {[%emt 00:00:11]} Qd7 {[%clk 00:17:05]} {[%emt
00:01:24]} 32. Rb2 {[%clk 00:09:37]} {[%emt 00:00:54]} Rd1+ {[%clk 00:16:43]}
{[%emt 00:00:32]} 33. Kh2 {[%clk 00:09:41]} {[%emt 00:00:04]} Qd3 {[%clk
00:15:33]} {[%emt 00:01:22]} 34. a4 {[%clk 00:07:54]} {[%emt 00:01:58]} 1/2-1/2



[ePGN "0.1;DGT LiveChess/2.2.6"]

[Event "MČR družstev mladších žáků 2024"]
[Site "Harrachov, Czech Republic"]
[Date "2024.06.16"]
[Round "9.10"]
[White "Kozusnik Jan"]
[Black "Vratny Vojtech"]
[Result "1-0"]
[TimeControl "25+10"]
[WhiteFideId "23731796"]
[BlackFideId "23753692"]
[WhiteElo "1345"]
[BlackElo "1208"]

1. e4 {[%clk 00:25:19]} c6 {[%clk 00:25:19]} {[%emt 00:00:02]} 2. d4 {[%clk
00:25:26]} {[%emt 00:00:03]} d5 {[%clk 00:25:27]} {[%emt 00:00:01]} 3. Nc3
{[%clk 00:25:27]} {[%emt 00:00:08]} dxe4 {[%clk 00:25:35]} {[%emt 00:00:02]} 4.
Nxe4 {[%clk 00:25:33]} {[%emt 00:00:04]} Nf6 {[%clk 00:25:43]} {[%emt
00:00:02]} 5. Nxf6+ {[%clk 00:25:19]} {[%emt 00:00:24]} exf6 {[%clk 00:25:51]}
{[%emt 00:00:03]} 6. Nf3 {[%clk 00:25:25]} {[%emt 00:00:04]} Bg4 {[%clk
00:25:58]} {[%emt 00:00:03]} 7. Be2 {[%clk 00:25:32]} {[%emt 00:00:03]} Bd6
{[%clk 00:26:00]} {[%emt 00:00:07]} 8. h3 {[%clk 00:25:41]} {[%emt 00:00:02]}
Bh5 {[%clk 00:26:06]} {[%emt 00:00:03]} 9. O-O {[%clk 00:24:57]} {[%emt
00:00:54]} O-O {[%clk 00:26:09]} {[%emt 00:00:07]} 10. Be3 {[%clk 00:24:52]}
{[%emt 00:00:15]} Nd7 {[%clk 00:25:40]} {[%emt 00:00:39]} 11. c4 {[%clk
00:24:34]} {[%emt 00:00:25]} Re8 {[%clk 00:25:41]} {[%emt 00:00:12]} 12. b3
{[%clk 00:24:12]} {[%emt 00:00:33]} Rc8 {[%clk 00:24:56]} {[%emt 00:00:55]} 13.
Qc2 {[%clk 00:23:42]} {[%emt 00:00:40]} Bg6 {[%clk 00:24:33]} {[%emt 00:00:31]}
14. Bd3 {[%clk 00:23:45]} {[%emt 00:00:08]} Bxd3 {[%clk 00:24:34]} {[%emt
00:00:09]} 15. Qxd3 {[%clk 00:23:53]} {[%emt 00:00:02]} Nf8 {[%clk 00:24:19]}
{[%emt 00:00:24]} 16. Rad1 {[%clk 00:23:31]} {[%emt 00:00:31]} Bc7 {[%clk
00:23:29]} {[%emt 00:01:01]} 17. d5 {[%clk 00:23:07]} {[%emt 00:00:35]} cxd5
{[%clk 00:23:09]} {[%emt 00:00:30]} 18. Qxd5 {[%clk 00:23:13]} {[%emt
00:00:03]} Qxd5 {[%clk 00:23:08]} {[%emt 00:00:12]} 19. Rxd5 {[%clk 00:23:20]}
{[%emt 00:00:02]} a6 {[%clk 00:22:56]} {[%emt 00:00:21]} 20. Rfd1 {[%clk
00:23:19]} {[%emt 00:00:12]} Ne6 {[%clk 00:20:49]} {[%emt 00:02:16]} 21. c5
{[%clk 00:22:35]} {[%emt 00:00:57]} Bf4 {[%clk 00:19:42]} {[%emt 00:01:17]} 22.
Bxf4 {[%clk 00:22:06]} {[%emt 00:00:40]} Nxf4 {[%clk 00:19:48]} {[%emt
00:00:04]} 23. Rd7 {[%clk 00:22:10]} {[%emt 00:00:03]} Rxc5 {[%clk 00:16:50]}
{[%emt 00:03:10]} 24. Rxb7 {[%clk 00:22:17]} {[%emt 00:00:03]} Rc2 {[%clk
00:13:00]} {[%emt 00:03:59]} 25. a4 {[%clk 00:21:38]} {[%emt 00:00:50]} Ne6
{[%clk 00:12:13]} {[%emt 00:00:58]} 26. Ra1 {[%clk 00:18:43]} {[%emt 00:02:57]}
Rec8 {[%clk 00:10:23]} {[%emt 00:02:03]} 27. Rb6 {[%clk 00:18:08]} {[%emt
00:00:42]} R2c6 {[%clk 00:09:57]} {[%emt 00:00:43]} 28. Rxc6 {[%clk 00:17:50]}
{[%emt 00:00:28]} Rxc6 {[%emt 00:00:02]} 29. b4 Kf8 {[%clk 00:09:33]} {[%emt
00:00:36]} 30. Kf1 {[%clk 00:17:18]} {[%emt 00:00:58]} Ke7 {[%clk 00:09:16]}
{[%emt 00:00:21]} 31. g3 {[%clk 00:12:53]} {[%emt 00:04:40]} Kd6 {[%clk
00:08:52]} {[%emt 00:00:26]} 32. Rd1+ {[%clk 00:12:46]} {[%emt 00:00:24]} Kc7
{[%clk 00:08:55]} {[%emt 00:00:06]} 33. Ke2 {[%clk 00:11:50]} {[%emt 00:01:07]}
Rc2+ {[%clk 00:07:39]} {[%emt 00:01:26]} 34. Rd2 {[%clk 00:11:25]} {[%emt
00:00:35]} Rc4 {[%clk 00:07:07]} {[%emt 00:00:35]} 35. Rb2 {[%clk 00:11:20]}
{[%emt 00:00:18]} a5 {[%clk 00:06:01]} {[%emt 00:01:19]} 36. Kd3 {[%clk
00:11:10]} {[%emt 00:00:21]} Rc6 {[%clk 00:05:12]} {[%emt 00:00:55]} 37. b5
{[%clk 00:10:19]} {[%emt 00:01:04]} Rb6 {[%clk 00:05:03]} {[%emt 00:00:18]} 38.
Kc4 {[%clk 00:09:50]} {[%emt 00:00:38]} Kb7 {[%clk 00:04:34]} {[%emt 00:00:38]}
39. Kd5 {[%clk 00:09:11]} {[%emt 00:00:50]} Nc7+ {[%clk 00:04:19]} {[%emt
00:00:23]} 40. Kc5 {[%clk 00:08:50]} {[%emt 00:00:36]} Ka7 {[%clk 00:04:20]}
{[%emt 00:00:06]} 41. Nd4 {[%clk 00:08:18]} {[%emt 00:00:43]} Na6+ {[%clk
00:04:04]} {[%emt 00:00:23]} 42. Kc4 {[%clk 00:07:07]} {[%emt 00:01:17]} Nb4
{[%clk 00:04:11]} {[%emt 00:00:11]} 43. Re2 {[%clk 00:06:52]} {[%emt 00:00:21]}
Rb7 {[%clk 00:04:14]} {[%emt 00:00:10]} 44. Kc5 {[%clk 00:04:15]} {[%emt
00:02:12]} Rc7+ {[%clk 00:04:11]} {[%emt 00:00:49]} 45. Nc6+ {[%clk 00:03:57]}
{[%emt 00:00:25]} Nxc6 {[%clk 00:04:17]} {[%emt 00:00:09]} 46. bxc6 {[%clk
00:04:04]} {[%emt 00:00:02]} Ka6 {[%clk 00:04:18]} {[%emt 00:00:09]} 47. Kd6
{[%clk 00:03:42]} {[%emt 00:00:31]} Rc8 {[%clk 00:04:09]} {[%emt 00:00:20]} 48.
Kd7 {[%clk 00:03:39]} {[%emt 00:00:14]} Rb8 {[%clk 00:04:10]} {[%emt 00:00:06]}
49. c7 {[%clk 00:03:37]} {[%emt 00:00:15]} Rb7 {[%clk 00:04:16]} {[%emt
00:00:03]} 50. Kd8 {[%clk 00:03:34]} {[%emt 00:00:13]} Rxc7 {[%clk 00:04:22]}
{[%emt 00:00:05]} 51. Kxc7 {[%clk 00:03:42]} {[%emt 00:00:02]} g5 {[%clk
00:04:30]} {[%emt 00:00:02]} 52. Re8 {[%clk 00:03:47]} {[%emt 00:00:03]} Ka7
{[%clk 00:04:37]} {[%emt 00:00:04]} 53. Rf8 {[%clk 00:03:54]} {[%emt 00:00:03]}
f5 {[%clk 00:04:44]} {[%emt 00:00:02]} 54. Rxf7 {[%clk 00:04:02]} {[%emt
00:00:02]} f4 {[%clk 00:04:51]} {[%emt 00:00:03]} 55. gxf4 {[%clk 00:04:11]}
{[%emt 00:00:02]} gxf4 {[%clk 00:05:00]} {[%emt 00:00:01]} 56. Rxf4 {[%clk
00:04:19]} h5 {[%clk 00:05:10]} 57. Rh4 {[%clk 00:04:28]} {[%emt 00:00:02]} Ka8
{[%clk 00:05:16]} {[%emt 00:00:03]} 58. Rxh5 {[%clk 00:04:36]} {[%emt
00:00:02]} Ka7 {[%clk 00:05:24]} 59. Rh8 {[%clk 00:04:44]} {[%emt 00:00:03]}
Ka6 {[%clk 00:05:32]} {[%emt 00:00:02]} 60. Ra8# {[%clk 00:04:53]} 1-0



[ePGN "0.1;DGT LiveChess/2.2.6"]